Workbook

Sheet Expanding Round
A1: Pre-Emption Calculator — Expanding Round
A2: New lead invests a fixed amount at a fixed price. Existing holders who take up maintain their CURRENT % — their top-up is grossed up by total participation, so changing one holder's take-up changes everyone else's required investment. Blue cells are inputs.
A4: Lead Terms (Fixed)
A5: Pre-money valuation (£) | B5: £8,000,000
A6: Lead investment (£) | B6: £2,000,000
A7: Pre-round shares (fully diluted) | B7: =SUM(B20:B24) -> 10,000,000
A8: Price per new share (£) | B8: =B5/B7 -> £0.8000
A9: Lead new shares | B9: =B6/B8 -> 2,500,000
A10: Participating ownership (Σ take-up × %) | B10: =SUMPRODUCT($C$20:$C$24,$E$20:$E$24) -> 65.0% | C10: =IF($B$10>=1,"⚠ All holders cannot fully maintain % while the lead also invests — round cannot resolve","") -> 
A11: Round Outcome (Expanded by Top-Ups)
A12: Existing holders' top-up raised (£) | B12: =SUM(G20:G24) -> £3,714,286
A13: Total round raised (£) | B13: =B6+B12 -> £5,714,286
A14: Total new shares issued | B14: =B9+SUM(F20:F24) -> 7,142,857
A15: Post-money valuation (£) | B15: =B5+B13 -> £13,714,286
A16: Post-round shares (fully diluted) | B16: =B7+B14 -> 17,142,857
A18: Cap Table & Pre-Emption Top-Up
A19: Shareholder | B19: Current Shares | C19: Current % | D19: Shares to Maintain % (full take-up) | E19: Take-Up % | F19: Shares Subscribed | G19: Top-Up Investment (£) | H19: Post-Round Shares | I19: Post-Round % | J19: Dilution (pp)
A20: Founder A | B20: 4,000,000 | C20: =B20/$B$7 -> 40.0% | D20: =C20*$B$9/(1-$B$10) -> 2,857,143 | E20: 100% | F20: =D20*E20 -> 2,857,143 | G20: =F20*$B$8 -> £2,285,714 | H20: =B20+F20 -> 6,857,143 | I20: =H20/$B$16 -> 40.0% | J20: =I20-C20 -> 0
A21: Founder B | B21: 3,000,000 | C21: =B21/$B$7 -> 30.0% | D21: =C21*$B$9/(1-$B$10) -> 2,142,857 | E21: 50% | F21: =D21*E21 -> 1,071,429 | G21: =F21*$B$8 -> £857,143 | H21: =B21+F21 -> 4,071,429 | I21: =H21/$B$16 -> 23.8% | J21: =I21-C21 -> (6.2%)
A22: Angel Investor | B22: 1,500,000 | C22: 15.0% | D22: 1,071,429 | E22: 0% | F22: 0 | G22: 0 | H22: 1,500,000 | I22: 8.8% | J22: (6.3%)
A23: Seed VC | B23: 1,000,000 | C23: 10.0% | D23: 714,286 | E23: 100% | F23: 714,286 | G23: £571,429 | H23: 1,714,286 | I23: 10.0% | J23: 0
A24: ESOP / Option Pool | B24: 500,000 | C24: 5.0% | D24: 357,143 | E24: 0% | F24: 0 | G24: 0 | H24: 500,000 | I24: 2.9% | J24: (2.1%)
A25: New Lead Investor | B25: 0 | C25: =B25/$B$7 -> 0.0% | D25: =C25*$B$9 -> 0 | F25: =$B$9 -> 2,500,000 | G25: =F25*$B$8 -> £2,000,000 | H25: =B25+F25 -> 2,500,000 | I25: =H25/$B$16 -> 14.6% | J25: =I25-C25 -> +14.6%
A26: Total | B26: =SUM(B20:B25) -> 10,000,000 | C26: =SUM(C20:C25) -> 100.0% | D26: =SUM(D20:D24) -> 7,142,857 | F26: =SUM(F20:F25) -> 7,142,857 | G26: =SUM(G20:G25) -> £5,714,286 | H26: =SUM(H20:H25) -> 17,142,857 | I26: =SUM(I20:I25) -> 100.0% | J26: =I26-C26 -> 0
